[Event "Mistrovství Čech mládeže 2023 - HD14"]
[Site "Harrachov, Czech Republic"]
[Date "2023.10.23"]
[Round "4.3"]
[White "Topenčík, Bruno"]
[Black "Slívová, Linda"]
[Result "1/2-1/2"]
[TimeControl "90m + 30s"]
[WhiteElo "1832"]
[BlackElo "1624"]

1. d4 {[%clk 01:30:57]} {[%emt 00:00:02]} d5 {[%clk 01:30:54]} {[%emt
00:00:07]} 2. c4 {[%clk 01:31:22]} {[%emt 00:00:05]} c6 {[%clk 01:31:12]}
{[%emt 00:00:11]} 3. cxd5 {[%clk 01:31:47]} {[%emt 00:00:05]} cxd5 {[%clk
01:31:33]} {[%emt 00:00:09]} 4. Bf4 {[%clk 01:32:12]} {[%emt 00:00:05]} Nc6
{[%clk 01:30:55]} {[%emt 00:01:10]} 5. e3 {[%clk 01:32:31]} {[%emt 00:00:10]}
Nf6 {[%clk 01:30:01]} {[%emt 00:01:24]} 6. Nc3 {[%clk 01:32:30]} {[%emt
00:00:31]} a6 {[%clk 01:29:49]} {[%emt 00:00:44]} 7. Nf3 {[%clk 01:32:43]}
{[%emt 00:00:15]} Bf5 {[%clk 01:23:19]} {[%emt 00:07:00]} 8. Be2 {[%clk
01:32:22]} {[%emt 00:00:51]} e6 {[%clk 01:22:03]} {[%emt 00:01:46]} 9. O-O
{[%clk 01:31:59]} {[%emt 00:00:52]} Be7 {[%clk 01:20:15]} {[%emt 00:02:19]} 10.
Rc1 {[%clk 01:29:37]} {[%emt 00:02:52]} O-O {[%clk 01:15:25]} {[%emt 00:05:20]}
11. Na4 {[%clk 01:25:11]} {[%emt 00:04:56]} Nd7 {[%clk 01:05:56]} {[%emt
00:10:00]} 12. a3 {[%clk 01:19:23]} {[%emt 00:06:19]} Rc8 {[%clk 01:00:44]}
{[%emt 00:05:41]} 13. b4 {[%clk 01:17:05]} {[%emt 00:02:48]} a5 {[%clk
00:57:23]} {[%emt 00:03:52]} 14. b5 {[%clk 01:11:47]} {[%emt 00:05:47]} Na7
{[%clk 00:54:50]} {[%emt 00:03:03]} 15. Qb3 {[%clk 01:11:16]} {[%emt 00:01:01]}
b6 {[%clk 00:47:47]} {[%emt 00:07:33]} 16. Ne5 {[%clk 01:07:15]} {[%emt
00:04:29]} Nxe5 {[%clk 00:45:54]} {[%emt 00:02:24]} 17. Bxe5 {[%clk 01:07:37]}
{[%emt 00:00:08]} f6 {[%clk 00:43:50]} {[%emt 00:02:35]} 18. Bg3 {[%clk
01:07:16]} {[%emt 00:00:50]} Bd6 {[%clk 00:40:14]} {[%emt 00:04:07]} 19. Rxc8
{[%clk 01:06:31]} {[%emt 00:01:15]} Nxc8 {[%clk 00:40:38]} {[%emt 00:00:06]} 20.
Rc1 {[%clk 01:06:35]} {[%emt 00:00:25]} Bxg3 {[%clk 00:38:47]} {[%emt
00:02:22]} 21. hxg3 {[%clk 01:05:53]} {[%emt 00:01:12]} Na7 {[%clk 00:35:57]}
{[%emt 00:03:20]} 22. Qc3 {[%clk 01:02:13]} {[%emt 00:04:07]} Rf7 {[%clk
00:36:18]} {[%emt 00:00:12]} 23. Kf1 {[%clk 00:57:19]} {[%emt 00:05:24]} Qd6
{[%clk 00:33:51]} {[%emt 00:02:57]} 24. Kg1 {[%clk 00:53:16]} {[%emt 00:04:34]}
e5 {[%clk 00:28:13]} {[%emt 00:06:08]} 25. dxe5 {[%clk 00:44:57]} {[%emt
00:08:49]} fxe5 {[%clk 00:28:16]} {[%emt 00:00:27]} 26. g4 {[%clk 00:40:31]}
{[%emt 00:04:56]} Bd7 {[%clk 00:18:27]} {[%emt 00:10:19]} 27. Qb3 {[%clk
00:35:59]} {[%emt 00:05:03]} Qf6 {[%clk 00:13:22]} {[%emt 00:05:35]} 28. Rf1
{[%clk 00:31:58]} {[%emt 00:04:31]} Qd6 {[%clk 00:10:34]} {[%emt 00:03:18]} 29.
Rd1 {[%clk 00:30:55]} {[%emt 00:01:30]} Be6 {[%clk 00:06:59]} {[%emt 00:04:07]}
30. Qd3 {[%clk 00:30:23]} {[%emt 00:01:02]} Rc7 {[%clk 00:05:57]} {[%emt
00:01:32]} 31. Bf3 {[%clk 00:28:31]} {[%emt 00:02:22]} Rd7 {[%clk 00:05:28]}
{[%emt 00:00:59]} 32. Rd2 {[%clk 00:21:29]} {[%emt 00:07:32]} Nc8 {[%clk
00:05:05]} {[%emt 00:00:54]} 33. Qc3 {[%clk 00:20:24]} {[%emt 00:01:35]} Rc7
{[%clk 00:05:05]} {[%emt 00:00:30]} 34. Qb2 {[%clk 00:20:38]} {[%emt 00:00:16]}
Rc4 {[%clk 00:04:38]} {[%emt 00:00:57]} 35. Nc3 {[%clk 00:19:26]} {[%emt
00:01:42]} 1/2-1/2

[Event "Mistrovství Čech mládeže 2023 - HD14"]
[Site "Harrachov, Czech Republic"]
[Date "2023.10.23"]
[Round "4.4"]
[White "Kammová, Kateřina"]
[Black "Krautschneider, Daniel Jan"]
[Result "1/2-1/2"]
[TimeControl "90m + 30s"]
[WhiteElo "1543"]
[BlackElo "1669"]

1. e4 {[%clk 01:30:30]} {[%emt 01:34:33]} c5 {[%clk 01:30:30]} 2. Nf3 {[%clk
01:30:55]} {[%emt 00:00:36]} Nc6 {[%clk 01:29:40]} 3. Bb5 {[%clk 01:30:17]}
{[%emt 00:02:29]} g6 {[%clk 01:29:46]} 4. O-O {[%clk 01:30:12]} {[%emt
00:00:56]} Bg7 {[%clk 01:29:41]} 5. Re1 {[%clk 01:28:27]} {[%emt 00:02:51]} d6
{[%clk 01:26:36]} {[%emt 00:03:36]} 6. c3 {[%clk 01:23:46]} {[%emt 00:05:11]}
Bd7 {[%clk 01:23:54]} {[%emt 00:03:13]} 7. a4 {[%clk 01:17:33]} {[%emt
00:06:43]} Nh6 {[%clk 01:21:35]} {[%emt 00:02:49]} 8. h3 {[%clk 01:12:12]}
{[%emt 00:05:50]} O-O {[%clk 01:21:20]} {[%emt 00:00:46]} 9. Na3 {[%clk
01:09:34]} {[%emt 00:03:06]} e5 {[%clk 01:18:35]} {[%emt 00:03:17]} 10. Bf1
{[%clk 01:03:01]} {[%emt 00:06:58]} Kh8 {[%clk 01:18:07]} {[%emt 00:01:02]} 11.
Nc4 {[%clk 00:50:51]} {[%emt 00:12:41]} Be6 {[%clk 01:17:46]} {[%emt 00:00:51]}
12. d4 {[%clk 00:47:25]} {[%emt 00:03:56]} exd4 {[%clk 00:55:35]} {[%emt
00:22:42]} 13. cxd4 {[%clk 00:46:15]} {[%emt 00:01:40]} Nxd4 {[%clk 00:46:53]}
{[%emt 00:09:12]} 14. Nxd4 {[%clk 00:45:01]} {[%emt 00:01:43]} cxd4 {[%clk
00:46:07]} {[%emt 00:01:16]} 15. Bxh6 {[%clk 00:44:25]} {[%emt 00:01:05]} Bxh6
{[%clk 00:46:06]} {[%emt 00:00:31]} 16. Qxd4+ {[%clk 00:44:10]} {[%emt
00:00:45]} Bg7 {[%clk 00:46:30]} {[%emt 00:00:06]} 17. Qxd6 {[%clk 00:43:40]}
{[%emt 00:00:59]} Bxc4 {[%clk 00:37:49]} {[%emt 00:09:12]} 18. Qxd8 {[%clk
00:41:06]} {[%emt 00:03:04]} Raxd8 {[%clk 00:37:35]} {[%emt 00:00:44]} 19. Bxc4
{[%clk 00:41:02]} {[%emt 00:00:33]} Bxb2 {[%clk 00:38:00]} {[%emt 00:00:05]} 20.
Rab1 {[%clk 00:40:20]} {[%emt 00:01:12]} Bc3 {[%clk 00:38:22]} {[%emt
00:00:08]} 21. Rec1 {[%clk 00:39:58]} {[%emt 00:00:49]} Bd2 {[%clk 00:38:41]}
{[%emt 00:00:13]} 22. Rd1 {[%clk 00:39:28]} {[%emt 00:01:00]} b6 {[%clk
00:38:52]} {[%emt 00:00:19]} 23. Rb2 {[%clk 00:33:30]} {[%emt 00:06:28]} Bc3
{[%clk 00:37:22]} {[%emt 00:02:00]} 24. Rxd8 {[%clk 00:33:10]} {[%emt
00:00:51]} Rxd8 {[%clk 00:37:45]} {[%emt 00:00:07]} 25. Rc2 {[%clk 00:33:15]}
{[%emt 00:00:25]} Be5 {[%clk 00:38:08]} {[%emt 00:00:07]} 26. Bd5 {[%clk
00:32:05]} {[%emt 00:01:40]} f5 {[%clk 00:37:44]} {[%emt 00:00:54]} 27. g3
{[%clk 00:31:56]} {[%emt 00:00:38]} fxe4 {[%clk 00:36:40]} {[%emt 00:01:35]} 28.
Bxe4 {[%clk 00:32:04]} {[%emt 00:00:21]} Kg7 {[%clk 00:36:48]} {[%emt
00:00:22]} 29. Kg2 {[%clk 00:31:41]} {[%emt 00:00:52]} Rd7 {[%clk 00:35:26]}
{[%emt 00:01:52]} 30. Bf3 {[%clk 00:29:45]} {[%emt 00:02:26]} Rc7 {[%clk
00:35:07]} {[%emt 00:00:49]} 31. Rxc7+ {[%clk 00:29:30]} {[%emt 00:00:46]} Bxc7
{[%clk 00:35:28]} {[%emt 00:00:09]} 32. Be2 {[%clk 00:29:13]} {[%emt 00:00:46]}
Kf6 {[%clk 00:35:50]} {[%emt 00:00:08]} 33. f4 {[%clk 00:29:10]} {[%emt
00:00:33]} h6 {[%clk 00:35:02]} {[%emt 00:01:17]} 34. Kf3 {[%clk 00:27:14]}
{[%emt 00:02:26]} g5 {[%clk 00:34:50]} {[%emt 00:00:42]} 35. Ke4 {[%clk
00:26:21]} {[%emt 00:01:23]} Bd6 {[%clk 00:34:44]} {[%emt 00:00:36]} 36. Kd5
{[%clk 00:25:17]} {[%emt 00:01:34]} Bc5 {[%clk 00:35:05]} {[%emt 00:00:10]} 37.
fxg5+ {[%clk 00:24:00]} {[%emt 00:01:47]} hxg5 {[%clk 00:35:28]} {[%emt
00:00:07]} 38. a5 {[%clk 00:23:53]} {[%emt 00:00:38]} Bf2 {[%clk 00:35:49]}
{[%emt 00:00:08]} 39. a6 {[%clk 00:23:30]} {[%emt 00:00:53]} b5 {[%clk
00:35:59]} {[%emt 00:00:20]} 40. Bxb5 {[%clk 00:22:26]} {[%emt 00:01:34]}
1/2-1/2

[Event "Mistrovství Čech mládeže 2023 - HD14"]
[Site "Harrachov, Czech Republic"]
[Date "2023.10.23"]
[Round "4.5"]
[White "Stefaniv, Vladislav"]
[Black "Křivka, Matěj"]
[Result "0-1"]
[TimeControl "90m + 30s"]
[WhiteElo "1566"]
[BlackElo "1665"]

1. d4 {[%clk 01:30:58]} {[%emt 00:00:01]} Nf6 {[%clk 01:30:53]} {[%emt
00:00:07]} 2. c4 {[%clk 01:31:23]} {[%emt 00:00:05]} g6 {[%clk 01:31:12]}
{[%emt 00:00:11]} 3. Nc3 {[%clk 01:31:46]} {[%emt 00:00:07]} Bg7 {[%clk
01:31:35]} {[%emt 00:00:07]} 4. e4 {[%clk 01:31:54]} {[%emt 00:00:22]} d6
{[%clk 01:31:54]} {[%emt 00:00:11]} 5. Bd3 {[%clk 01:31:55]} {[%emt 00:00:29]}
O-O {[%clk 01:31:43]} {[%emt 00:00:41]} 6. Nge2 {[%clk 01:31:44]} {[%emt
00:00:41]} e5 {[%clk 01:30:51]} {[%emt 00:01:22]} 7. d5 {[%clk 01:31:51]}
{[%emt 00:00:23]} Nbd7 {[%clk 01:30:44]} {[%emt 00:00:36]} 8. O-O {[%clk
01:31:36]} {[%emt 00:00:45]} a5 {[%clk 01:30:02]} {[%emt 00:01:12]} 9. a3
{[%clk 01:28:53]} {[%emt 00:03:13]} Nc5 {[%clk 01:28:44]} {[%emt 00:01:47]} 10.
Bc2 {[%clk 01:29:07]} {[%emt 00:00:16]} Ne8 {[%clk 01:27:50]} {[%emt 00:01:25]}
11. Be3 {[%clk 01:28:24]} {[%emt 00:01:13]} f5 {[%clk 01:26:34]} {[%emt
00:01:45]} 12. exf5 {[%clk 01:28:14]} {[%emt 00:00:40]} gxf5 {[%clk 01:26:37]}
{[%emt 00:00:27]} 13. f4 {[%clk 01:28:30]} {[%emt 00:00:14]} Nd7 {[%clk
01:16:55]} {[%emt 00:10:13]} 14. b4 {[%clk 01:17:43]} {[%emt 00:11:17]} axb4
{[%clk 01:16:35]} {[%emt 00:00:50]} 15. axb4 {[%clk 01:18:05]} {[%emt
00:00:08]} Rxa1 {[%clk 01:16:54]} {[%emt 00:00:10]} 16. Qxa1 {[%clk 01:18:31]}
{[%emt 00:00:05]} Bh6 {[%clk 01:11:33]} {[%emt 00:05:50]} 17. Bb3 {[%clk
00:54:55]} {[%emt 00:24:06]} Ndf6 {[%clk 01:07:42]} {[%emt 00:04:22]} 18. h3
{[%clk 00:50:47]} {[%emt 00:04:38]} Kh8 {[%clk 01:05:51]} {[%emt 00:02:20]} 19.
Qc1 {[%clk 00:48:45]} {[%emt 00:02:32]} Qe7 {[%clk 00:58:28]} {[%emt 00:07:53]}
20. fxe5 {[%clk 00:35:26]} {[%emt 00:13:49]} Bxe3+ {[%clk 00:58:30]} {[%emt
00:00:28]} 21. Qxe3 {[%clk 00:35:51]} {[%emt 00:00:05]} dxe5 {[%clk 00:52:40]}
{[%emt 00:06:20]} 22. c5 {[%clk 00:35:45]} {[%emt 00:00:36]} Ng7 {[%clk
00:45:34]} {[%emt 00:07:35]} 23. Rd1 {[%clk 00:34:53]} {[%emt 00:01:22]} Re8
{[%clk 00:40:52]} {[%emt 00:05:13]} 24. Nb5 {[%clk 00:27:38]} {[%emt 00:07:45]}
f4 {[%clk 00:36:46]} {[%emt 00:04:36]} 25. Qf3 {[%clk 00:25:55]} {[%emt
00:02:04]} Nf5 {[%clk 00:35:19]} {[%emt 00:02:06]} 26. Nec3 {[%clk 00:19:58]}
{[%emt 00:06:23]} Qg7 {[%clk 00:31:04]} {[%emt 00:04:47]} 27. Kh2 {[%clk
00:17:05]} {[%emt 00:03:24]} Nh4 {[%clk 00:23:10]} {[%emt 00:08:24]} 28. Qf2
{[%clk 00:16:39]} {[%emt 00:00:57]} Rg8 {[%clk 00:20:48]} {[%emt 00:02:51]} 29.
Rg1 {[%clk 00:10:00]} {[%emt 00:07:09]} Qh6 {[%clk 00:16:43]} {[%emt 00:04:36]}
30. Kh1 {[%clk 00:01:20]} {[%emt 00:09:10]} Ng4 {[%clk 00:12:58]} {[%emt
00:04:15]} 31. Qe2 {[%clk 00:00:48]} {[%emt 00:01:00]} Ne3 {[%clk 00:12:06]}
{[%emt 00:01:24]} 32. d6 {[%clk 00:00:38]} {[%emt 00:00:40]} Nhxg2 {[%clk
00:11:45]} {[%emt 00:00:50]} 33. Qf3 {[%clk 00:00:37]} {[%emt 00:00:30]} Bxh3
{[%clk 00:10:39]} {[%emt 00:01:37]} 34. Rxg2 {[%clk 00:00:34]} {[%emt
00:00:33]} Bxg2+ {[%clk 00:11:04]} {[%emt 00:00:05]} 0-1

[Event "Mistrovství Čech mládeže 2023 - HD14"]
[Site "Harrachov, Czech Republic"]
[Date "2023.10.23"]
[Round "4.6"]
[White "Bělaška, Adam"]
[Black "Sboev, Kirill"]
[Result "1-0"]
[TimeControl "90m + 30s"]
[WhiteElo "1503"]
[BlackElo "1556"]

1. e4 {[%clk 01:30:57]} {[%emt 00:00:03]} e5 {[%clk 01:30:56]} {[%emt
00:00:05]} 2. Nf3 {[%clk 01:31:20]} {[%emt 00:00:06]} Nc6 {[%clk 01:31:19]}
{[%emt 00:00:07]} 3. Bb5 {[%clk 01:31:44]} {[%emt 00:00:05]} a6 {[%clk
01:31:28]} {[%emt 00:00:22]} 4. Ba4 {[%clk 01:32:09]} {[%emt 00:00:04]} Nf6
{[%clk 01:31:37]} {[%emt 00:00:22]} 5. d3 {[%clk 01:32:33]} {[%emt 00:00:05]}
Be7 {[%clk 01:31:38]} {[%emt 00:00:30]} 6. O-O {[%clk 01:32:46]} {[%emt
00:00:17]} b5 {[%clk 01:31:56]} {[%emt 00:00:12]} 7. Bb3 {[%clk 01:33:11]}
{[%emt 00:00:04]} O-O {[%clk 01:32:07]} {[%emt 00:00:19]} 8. c3 {[%clk
01:33:34]} {[%emt 00:00:08]} d6 {[%clk 01:32:16]} {[%emt 00:00:20]} 9. h3
{[%clk 01:33:46]} {[%emt 00:00:17]} Na7 {[%clk 01:31:50]} {[%emt 00:00:57]} 10.
Re1 {[%clk 01:32:51]} {[%emt 00:01:25]} Bb7 {[%clk 01:31:52]} {[%emt 00:00:29]}
11. Nbd2 {[%clk 01:32:41]} {[%emt 00:00:39]} Nc8 {[%clk 01:31:51]} {[%emt
00:00:31]} 12. Nf1 {[%clk 01:32:51]} {[%emt 00:00:20]} Nb6 {[%clk 01:31:23]}
{[%emt 00:00:58]} 13. Ng3 {[%clk 01:32:58]} {[%emt 00:00:22]} Qd7 {[%clk
01:24:36]} {[%emt 00:07:17]} 14. d4 {[%clk 01:30:32]} {[%emt 00:02:55]} exd4
{[%clk 01:22:29]} {[%emt 00:02:37]} 15. cxd4 {[%clk 01:30:51]} {[%emt
00:00:12]} Rad8 {[%clk 01:19:10]} {[%emt 00:03:49]} 16. Bc2 {[%clk 01:30:20]}
{[%emt 00:01:01]} c5 {[%clk 01:11:47]} {[%emt 00:07:53]} 17. d5 {[%clk
01:30:08]} {[%emt 00:00:42]} Qc7 {[%clk 01:05:36]} {[%emt 00:06:41]} 18. b3
{[%clk 01:24:04]} {[%emt 00:06:34]} c4 {[%clk 01:03:31]} {[%emt 00:02:35]} 19.
Bb2 {[%clk 01:21:45]} {[%emt 00:02:48]} c3 {[%clk 01:00:17]} {[%emt 00:03:44]}
20. Bc1 {[%clk 01:21:21]} {[%emt 00:00:53]} b4 {[%clk 00:57:10]} {[%emt
00:03:38]} 21. a3 {[%clk 01:20:46]} {[%emt 00:01:05]} a5 {[%clk 00:55:41]}
{[%emt 00:01:59]} 22. axb4 {[%clk 01:21:00]} {[%emt 00:00:16]} axb4 {[%clk
00:56:05]} {[%emt 00:00:06]} 23. Qd4 {[%clk 01:20:51]} {[%emt 00:00:38]} Qc5
{[%clk 00:54:08]} {[%emt 00:02:29]} 24. Qxc5 {[%clk 01:20:33]} {[%emt
00:00:47]} dxc5 {[%clk 00:54:27]} {[%emt 00:00:11]} 25. Bf4 {[%clk 01:19:28]}
{[%emt 00:01:35]} Ra8 {[%clk 00:52:15]} {[%emt 00:02:42]} 26. Nf5 {[%clk
01:18:09]} {[%emt 00:01:49]} Bd8 {[%clk 00:45:35]} {[%emt 00:07:10]} 27. Rxa8
{[%clk 01:17:48]} {[%emt 00:00:51]} Nxa8 {[%clk 00:45:16]} {[%emt 00:00:49]} 28.
Bd6 {[%clk 01:17:20]} {[%emt 00:00:57]} Re8 {[%clk 00:44:57]} {[%emt 00:00:49]}
29. Bxc5 {[%clk 01:17:13]} {[%emt 00:00:37]} Bc8 {[%clk 00:31:50]} {[%emt
00:13:37]} 30. Nd6 {[%clk 01:16:51]} {[%emt 00:00:52]} Re7 {[%clk 00:31:55]}
{[%emt 00:00:25]} 31. Nxc8 {[%clk 01:17:01]} {[%emt 00:00:20]} Rc7 {[%clk
00:32:03]} {[%emt 00:00:22]} 32. Bxb4 {[%clk 01:14:25]} {[%emt 00:03:05]} Rxc8
{[%clk 00:32:12]} {[%emt 00:00:22]} 33. Ne5 {[%clk 01:13:38]} {[%emt 00:01:17]}
Bb6 {[%clk 00:28:40]} {[%emt 00:04:01]} 34. Nc6 {[%clk 01:13:33]} {[%emt
00:00:35]} Re8 {[%clk 00:18:19]} {[%emt 00:10:50]} 35. Bxc3 {[%clk 01:12:44]}
{[%emt 00:01:18]} 1-0

[Event "Mistrovství Čech mládeže 2023 - HD14"]
[Site "Harrachov, Czech Republic"]
[Date "2023.10.23"]
[Round "4.7"]
[White "Švadlenka, Dominik"]
[Black "Malý, Jiří"]
[Result "1-0"]
[TimeControl "90m + 30s"]
[WhiteElo "1710"]
[BlackElo "1490"]

1. d4 {[%clk 01:30:58]} d5 {[%clk 01:30:45]} {[%emt 00:00:15]} 2. c4 {[%clk
01:31:24]} c6 {[%clk 01:31:09]} {[%emt 00:00:10]} 3. Nc3 dxc4 {[%clk 01:31:30]}
4. a4 {[%clk 01:32:14]} {[%emt 00:00:06]} e5 {[%clk 01:28:57]} {[%emt
00:03:03]} 5. dxe5 {[%clk 01:30:13]} {[%emt 00:02:31]} Qxd1+ {[%clk 01:29:11]}
{[%emt 00:00:17]} 6. Kxd1 {[%clk 01:28:29]} {[%emt 00:02:14]} Be6 {[%clk
01:27:03]} {[%emt 00:03:09]} 7. Bf4 {[%clk 01:24:31]} {[%emt 00:04:56]} Ne7
{[%clk 01:21:55]} {[%emt 00:05:37]} 8. e4 {[%clk 01:24:08]} {[%emt 00:00:54]}
Nd7 {[%clk 01:19:37]} {[%emt 00:02:48]} 9. Bg3 {[%clk 01:21:01]} {[%emt
00:03:38]} Rd8 {[%clk 01:15:07]} {[%emt 00:05:00]} 10. Kc2 {[%clk 01:20:07]}
{[%emt 00:01:24]} f5 {[%clk 01:00:19]} {[%emt 00:15:19]} 11. Nf3 {[%clk
01:14:25]} {[%emt 00:06:12]} Nc5 {[%clk 00:48:19]} {[%emt 00:12:29]} 12. Ng5
{[%clk 01:10:52]} {[%emt 00:04:02]} fxe4 {[%clk 00:43:05]} {[%emt 00:05:45]} 13.
Nxe6 {[%clk 01:10:10]} {[%emt 00:01:12]} Nxe6 {[%clk 00:42:58]} {[%emt
00:00:36]} 14. Nxe4 {[%clk 01:09:25]} {[%emt 00:01:15]} Nf5 {[%clk 00:40:22]}
{[%emt 00:03:07]} 15. Bxc4 {[%clk 01:05:07]} {[%emt 00:04:48]} Nxg3 {[%clk
00:39:25]} {[%emt 00:01:27]} 16. hxg3 {[%clk 01:05:09]} {[%emt 00:00:28]} Nd4+
{[%clk 00:38:41]} {[%emt 00:01:14]} 17. Kc3 {[%clk 01:04:30]} {[%emt 00:01:10]}
Be7 {[%clk 00:37:11]} {[%emt 00:02:00]} 18. Rad1 {[%clk 01:02:02]} {[%emt
00:02:58]} Nf5 {[%clk 00:34:14]} {[%emt 00:03:27]} 19. Rxd8+ {[%clk 01:01:19]}
{[%emt 00:01:13]} Bxd8 {[%clk 00:31:19]} {[%emt 00:03:25]} 20. g4 {[%clk
00:57:48]} {[%emt 00:04:01]} Ne7 {[%clk 00:25:58]} {[%emt 00:05:52]} 21. Nd6+
{[%clk 00:57:44]} {[%emt 00:00:34]} Kd7 {[%clk 00:25:30]} {[%emt 00:00:58]} 22.
Nxb7 {[%clk 00:56:13]} {[%emt 00:02:01]} Ng6 {[%clk 00:23:02]} {[%emt
00:02:58]} 23. Rd1+ {[%clk 00:55:32]} {[%emt 00:01:12]} Ke7 {[%clk 00:22:18]}
{[%emt 00:01:14]} 24. Rxd8 {[%clk 00:55:52]} {[%emt 00:00:09]} Rxd8 {[%clk
00:22:40]} {[%emt 00:00:08]} 25. Nxd8 {[%clk 00:56:16]} {[%emt 00:00:06]} Kxd8
{[%clk 00:23:06]} {[%emt 00:00:04]} 26. Kd4 {[%clk 00:56:35]} {[%emt 00:00:10]}
Ne7 {[%clk 00:22:56]} {[%emt 00:00:40]} 27. f4 {[%clk 00:56:29]} {[%emt
00:00:36]} Kd7 {[%clk 00:21:45]} {[%emt 00:01:42]} 28. b4 {[%clk 00:56:27]}
{[%emt 00:00:32]} Kc7 {[%clk 00:20:25]} {[%emt 00:01:49]} 29. a5 {[%clk
00:56:01]} {[%emt 00:00:56]} h6 {[%clk 00:20:09]} {[%emt 00:00:46]} 30. Ke4
{[%clk 00:55:20]} {[%emt 00:01:11]} Kd8 {[%clk 00:19:52]} {[%emt 00:00:47]} 31.
f5 {[%clk 00:55:30]} {[%emt 00:00:21]} Kd7 {[%clk 00:19:14]} {[%emt 00:01:08]}
32. Kf4 {[%clk 00:55:24]} {[%emt 00:00:36]} Ke8 {[%clk 00:16:41]} {[%emt
00:03:03]} 33. g5 {[%clk 00:54:40]} {[%emt 00:01:14]} hxg5+ {[%clk 00:15:32]}
{[%emt 00:01:40]} 34. Kxg5 {[%clk 00:55:04]} {[%emt 00:00:06]} Kf8 {[%clk
00:14:49]} {[%emt 00:01:13]} 35. Be6 {[%clk 00:54:45]} {[%emt 00:00:48]} Ke8
{[%clk 00:14:24]} {[%emt 00:00:55]} 36. f6 {[%clk 00:55:05]} {[%emt 00:00:11]}
gxf6+ {[%clk 00:14:17]} {[%emt 00:00:37]} 37. exf6 {[%clk 00:55:26]} {[%emt
00:00:08]} 1-0

[Event "Mistrovství Čech mládeže 2023 - HD14"]
[Site "Harrachov, Czech Republic"]
[Date "2023.10.23"]
[Round "4.8"]
[White "Bělaška, Václav"]
[Black "Hrdlička, Jan"]
[Result "1-0"]
[TimeControl "90m + 30s"]
[WhiteElo "1666"]
[BlackElo "1418"]

1. e4 {[%clk 01:30:58]} {[%emt 00:00:01]} c5 {[%clk 01:30:50]} {[%emt
00:00:10]} 2. Nf3 {[%clk 01:31:19]} {[%emt 00:00:09]} d6 {[%clk 01:31:14]}
{[%emt 00:00:06]} 3. d4 {[%clk 01:31:37]} {[%emt 00:00:13]} cxd4 {[%clk
01:31:28]} {[%emt 00:00:16]} 4. Nxd4 {[%clk 01:31:57]} {[%emt 00:00:10]} Nf6
{[%clk 01:31:49]} {[%emt 00:00:08]} 5. Nc3 {[%clk 01:32:23]} {[%emt 00:00:04]}
g6 {[%clk 01:30:45]} {[%emt 00:01:34]} 6. Be3 {[%clk 01:32:24]} {[%emt
00:00:29]} Bg7 {[%clk 01:30:44]} {[%emt 00:00:31]} 7. f3 {[%clk 01:32:35]}
{[%emt 00:00:20]} O-O {[%clk 01:30:51]} {[%emt 00:00:22]} 8. Qd2 {[%clk
01:33:03]} {[%emt 00:00:03]} Nc6 {[%clk 01:31:05]} {[%emt 00:00:15]} 9. g4
{[%clk 01:32:02]} {[%emt 00:01:32]} h5 {[%clk 01:30:52]} {[%emt 00:00:43]} 10.
gxh5 {[%clk 01:32:11]} {[%emt 00:00:21]} Nxh5 {[%clk 01:30:30]} {[%emt
00:00:52]} 11. O-O-O {[%clk 01:32:32]} {[%emt 00:00:09]} Bd7 {[%clk 01:27:12]}
{[%emt 00:03:48]} 12. Nb3 {[%clk 01:29:47]} {[%emt 00:03:15]} a6 {[%clk
01:25:01]} {[%emt 00:02:41]} 13. Nd5 {[%clk 01:27:08]} {[%emt 00:03:09]} b5
{[%clk 01:21:16]} {[%emt 00:04:15]} 14. Be2 {[%clk 01:24:52]} {[%emt 00:02:46]}
Rb8 {[%clk 01:18:57]} {[%emt 00:02:49]} 15. f4 {[%clk 01:21:40]} {[%emt
00:03:42]} Nf6 {[%clk 01:03:25]} {[%emt 00:16:01]} 16. Nxf6+ {[%clk 01:21:35]}
{[%emt 00:00:35]} Bxf6 {[%clk 01:03:01]} {[%emt 00:00:54]} 17. e5 {[%clk
01:21:41]} {[%emt 00:00:25]} Bg7 {[%clk 00:58:44]} {[%emt 00:04:47]} 18. exd6
{[%clk 01:21:50]} {[%emt 00:00:21]} e5 {[%clk 00:45:59]} {[%emt 00:13:14]} 19.
h4 {[%clk 01:18:13]} {[%emt 00:04:06]} Qf6 {[%clk 00:34:05]} {[%emt 00:12:25]}
20. c3 {[%clk 01:11:15]} {[%emt 00:07:29]} Rbc8 {[%clk 00:26:44]} {[%emt
00:07:50]} 21. Nc5 {[%clk 01:07:54]} {[%emt 00:03:51]} Bf5 {[%clk 00:26:38]}
{[%emt 00:00:36]} 22. fxe5 {[%clk 01:06:37]} {[%emt 00:01:47]} Qxe5 {[%clk
00:26:37]} {[%emt 00:00:30]} 23. h5 {[%clk 01:02:48]} {[%emt 00:04:19]} b4
{[%clk 00:23:47]} {[%emt 00:03:21]} 24. c4 {[%clk 01:02:40]} {[%emt 00:00:38]}
Bc2 {[%clk 00:12:21]} {[%emt 00:11:55]} 25. Nd3 {[%clk 01:00:13]} {[%emt
00:02:57]} Bxd3 {[%clk 00:11:24]} {[%emt 00:01:26]} 26. Bxd3 {[%clk 01:00:29]}
{[%emt 00:00:15]} Qxd6 {[%clk 00:10:49]} {[%emt 00:01:05]} 27. hxg6 {[%clk
01:00:37]} {[%emt 00:00:22]} fxg6 {[%clk 00:10:46]} {[%emt 00:00:33]} 28. Qc2
{[%clk 00:59:53]} {[%emt 00:01:14]} Ne5 {[%clk 00:09:54]} {[%emt 00:01:22]} 29.
Be4 {[%clk 00:58:56]} {[%emt 00:01:28]} Qc7 {[%clk 00:07:35]} {[%emt 00:02:49]}
30. Bd5+ {[%clk 00:59:16]} {[%emt 00:00:10]} Nf7 {[%clk 00:07:36]} {[%emt
00:00:28]} 31. Qxg6 {[%clk 00:59:27]} 1-0